[Event "Titled Tuesday Blitz May 9 Late 2023"]
[White "Souza, Adwilhans Luciano"]
[Black "FoxOnTheRun97"]
[WhiteFideId "2101793"]
[WhiteElo "2288"]
[BlackElo "2526"]
[Result "1-0"]
[Round "03"]
[TimeControl "180+2"]
[Date "2023.05.09"]
[WhiteClock "0:00:10"]
[BlackClock "0:00:16"]

1. e4 {[%clk 0:02:59]}  c6 {[%clk 0:02:58]} 2. d4 {[%clk 0:02:58]}  d5 {[%clk 0:02:59]} 3. exd5 {[%clk 0:02:58]}  cxd5 {[%clk 0:02:59]} 4. c4 {[%clk 0:02:57]}  Nf6 {[%clk 0:02:59]} 5. Nc3 {[%clk 0:02:57]}  g6 {[%clk 0:02:58]} 6. Bg5 {[%clk 0:02:56]}  Nbd7 {[%clk 0:02:39]} 7. cxd5 {[%clk 0:02:53]}  Bg7 {[%clk 0:02:36]} 8. Bc4 {[%clk 0:02:51]}  O-O {[%clk 0:02:33]} 9. Bb3 {[%clk 0:02:50]}  Nb6 {[%clk 0:02:31]} 10. Qf3 {[%clk 0:02:48]}  Bg4 {[%clk 0:02:27]} 11. Qg3 {[%clk 0:02:47]}  Bf5 {[%clk 0:02:22]} 12. Qf3 {[%clk 0:02:43]}  Qd7 {[%clk 0:02:02]} 13. h3 {[%clk 0:02:43]}  Qd6 {[%clk 0:01:12]} 14. g4 {[%clk 0:02:38]}  Bd7 {[%clk 0:01:12]} 15. Nge2 {[%clk 0:02:36]}  a5 {[%clk 0:01:05]} 16. a3 {[%clk 0:02:31]}  e5 {[%clk 0:00:24]} 17. dxe5 {[%clk 0:02:07]}  Qxe5 {[%clk 0:00:25]} 18. Bf4 {[%clk 0:02:07]}  Qe7 {[%clk 0:00:23]} 19. O-O {[%clk 0:02:01]}  a4 {[%clk 0:00:23]} 20. Ba2 {[%clk 0:01:42]}  Qc5 {[%clk 0:00:20]} 21. Be3 {[%clk 0:01:40]}  Qd6 {[%clk 0:00:15]} 22. Rad1 {[%clk 0:01:36]}  Nc8 {[%clk 0:00:12]} 23. Nf4 {[%clk 0:01:18]}  Re8 {[%clk 0:00:08]} 24. Nd3 {[%clk 0:01:16]}  h5 {[%clk 0:00:07]} 25. g5 {[%clk 0:01:12]}  Nh7 {[%clk 0:00:07]} 26. Rfe1 {[%clk 0:01:07]}  Nf8 {[%clk 0:00:05]} 27. Nc5 {[%clk 0:00:53]}  b6 {[%clk 0:00:04]} 28. Nxd7 {[%clk 0:00:52]}  Qxd7 {[%clk 0:00:04]} 29. Bc4 {[%clk 0:00:41]}  Nd6 {[%clk 0:00:04]} 30. Bf1 {[%clk 0:00:40]}  Rab8 {[%clk 0:00:04]} 31. Rd2 {[%clk 0:00:29]}  Red8 {[%clk 0:00:04]} 32. Bd4 {[%clk 0:00:26]}  Nf5 {[%clk 0:00:05]} 33. Bxg7 {[%clk 0:00:26]}  Kxg7 {[%clk 0:00:06]} 34. Ne4 {[%clk 0:00:21]}  Nh7 {[%clk 0:00:05]} 35. Qf4 {[%clk 0:00:20]}  Re8 {[%clk 0:00:05]} 36. Red1 {[%clk 0:00:18]}  Rbc8 {[%clk 0:00:05]} 37. d6 {[%clk 0:00:17]}  Re6 {[%clk 0:00:04]} 38. Nc3 {[%clk 0:00:15]}  Rc5 {[%clk 0:00:02]} 39. Ne4 {[%clk 0:00:06]}  Rxe4 {[%clk 0:00:02]} 40. Qxe4 {[%clk 0:00:06]}  Nxg5 {[%clk 0:00:03]} 41. Qg2 {[%clk 0:00:04]}  Ne6 {[%clk 0:00:02]} 42. h4 {[%clk 0:00:04]}  Nf4 {[%clk 0:00:02]} 43. Qf3 {[%clk 0:00:04]}  Ne6 {[%clk 0:00:02]} 44. Rd5 {[%clk 0:00:05]}  Nxh4 {[%clk 0:00:01]} 45. Qe4 {[%clk 0:00:03]}  Rxd5 {[%clk 0:00:01]} 46. Rxd5 {[%clk 0:00:02]}  Nf5 {[%clk 0:00:02]} 47. Qe5+ {[%clk 0:00:03]}  Kh7 {[%clk 0:00:02]} 48. Qc3 {[%clk 0:00:03]}  Nfg7 {[%clk 0:00:02]} 49. Qb4 {[%clk 0:00:02]}  Nd8 {[%clk 0:00:01]} 50. Bb5 {[%clk 0:00:01]}  Qg4+ {[%clk 0:00:01]} 51. Qxg4 {[%clk 0:00:01]}  hxg4 {[%clk 0:00:02]} 52. d7 {[%clk 0:00:01]}  Nge6 {[%clk 0:00:03]} 53. Rd6 {[%clk 0:00:02]}  Kg7 {[%clk 0:00:03]} 54. Rxb6 {[%clk 0:00:02]}  Kf6 {[%clk 0:00:04]} 55. Bxa4 {[%clk 0:00:03]}  Ke7 {[%clk 0:00:05]} 56. Rb8 {[%clk 0:00:04]}  f5 {[%clk 0:00:05]} 57. Rb7 {[%clk 0:00:04]}  Nf7 {[%clk 0:00:05]} 58. d8=Q+ {[%clk 0:00:04]}  Kxd8 {[%clk 0:00:05]} 59. Rxf7 {[%clk 0:00:04]}  Nc5 {[%clk 0:00:03]} 60. Bc2 {[%clk 0:00:04]}  Ne4 {[%clk 0:00:04]} 61. Bxe4 {[%clk 0:00:03]}  fxe4 {[%clk 0:00:05]} 62. Rf4 {[%clk 0:00:03]}  g5 {[%clk 0:00:06]} 63. Rxg4 {[%clk 0:00:03]}  Ke7 {[%clk 0:00:07]} 64. Rxe4+ {[%clk 0:00:03]}  Kf6 {[%clk 0:00:08]} 65. f3 {[%clk 0:00:04]}  Kf5 {[%clk 0:00:08]} 66. Kf2 {[%clk 0:00:05]}  Kg6 {[%clk 0:00:08]} 67. Kg3 {[%clk 0:00:05]}  Kf5 {[%clk 0:00:09]} 68. a4 {[%clk 0:00:06]}  Kf6 {[%clk 0:00:10]} 69. a5 {[%clk 0:00:06]}  Kf5 {[%clk 0:00:11]} 70. a6 {[%clk 0:00:07]}  Kf6 {[%clk 0:00:12]} 71. a7 {[%clk 0:00:08]}  Kf5 {[%clk 0:00:13]} 72. a8=Q {[%clk 0:00:09]}  Kf6 {[%clk 0:00:14]} 73. Qd5 {[%clk 0:00:09]}  g4 {[%clk 0:00:14]} 74. Re6+ {[%clk 0:00:09]}  Kf7 {[%clk 0:00:15]} 75. Qd7+ {[%clk 0:00:09]}  Kf8 {[%clk 0:00:16]} 76. Re8# {[%clk 0:00:10]} 1-0


[Site "https://www.chess.com"]

[Event "Titled Tuesday Blitz May 9 Late 2023"]
[White "Ward, Ieuan C"]
[Black "Karttunen, Mika"]
[WhiteFideId "406627"]
[BlackFideId "502081"]
[WhiteElo "2310"]
[BlackElo "2396"]
[Result "0-1"]
[Round "03"]
[TimeControl "180+2"]
[Date "2023.05.09"]
[WhiteClock "0:01:42"]
[BlackClock "0:01:32"]

1. d4 {[%clk 0:03:00]}  Nf6 {[%clk 0:02:59]} 2. c4 {[%clk 0:03:00]}  e6 {[%clk 0:02:59]} 3. Nf3 {[%clk 0:03:00]}  d5 {[%clk 0:03:00]} 4. Nc3 {[%clk 0:03:00]}  Bb4 {[%clk 0:03:00]} 5. e3 {[%clk 0:02:57]}  O-O {[%clk 0:02:58]} 6. Bd3 {[%clk 0:02:53]}  dxc4 {[%clk 0:02:54]} 7. Bxc4 {[%clk 0:02:54]}  c5 {[%clk 0:02:54]} 8. O-O {[%clk 0:02:53]}  cxd4 {[%clk 0:02:51]} 9. Nxd4 {[%clk 0:02:51]}  Nbd7 {[%clk 0:02:39]} 10. Nce2 {[%clk 0:02:30]}  Qe7 {[%clk 0:02:33]} 11. a3 {[%clk 0:02:28]}  Bd6 {[%clk 0:02:32]} 12. b4 {[%clk 0:02:20]}  a6 {[%clk 0:02:30]} 13. Bb2 {[%clk 0:02:20]}  Ne5 {[%clk 0:02:28]} 14. Bb3 {[%clk 0:02:17]}  Bd7 {[%clk 0:02:28]} 15. Ng3 {[%clk 0:02:12]}  Rac8 {[%clk 0:02:24]} 16. Rc1 {[%clk 0:02:09]}  Rxc1 {[%clk 0:02:21]} 17. Bxc1 {[%clk 0:02:08]}  Rd8 {[%clk 0:02:14]} 18. Qe2 {[%clk 0:02:06]}  g6 {[%clk 0:02:01]} 19. Rd1 {[%clk 0:02:03]}  h5 {[%clk 0:01:56]} 20. Bc2 {[%clk 0:01:53]}  Neg4 {[%clk 0:01:47]} 21. Ne4 {[%clk 0:01:46]}  Bxh2+ {[%clk 0:01:44]} 22. Kh1 {[%clk 0:01:46]}  Nxe4 {[%clk 0:01:32]} 23. Bxe4 {[%clk 0:01:47]}  Qh4 {[%clk 0:01:32]} 24. Nf3 {[%clk 0:01:42]}  Nxf2+ {[%clk 0:01:32]} 0-1


[Site "https://www.chess.com"]

[Event "Titled Tuesday Blitz May 9 Late 2023"]
[White "angelgab3"]
[Black "Georg, Heinz"]
[BlackFideId "4607295"]
[WhiteElo "2522"]
[BlackElo "2303"]
[Result "1-0"]
[Round "03"]
[TimeControl "180+2"]
[Date "2023.05.09"]
[WhiteClock "0:01:46"]
[BlackClock "0:00:08"]

1. e4 {[%clk 0:03:00]}  c5 {[%clk 0:02:59]} 2. Nf3 {[%clk 0:03:01]}  Nc6 {[%clk 0:03:00]} 3. d4 {[%clk 0:03:01]}  cxd4 {[%clk 0:03:01]} 4. Nxd4 {[%clk 0:03:01]}  Nf6 {[%clk 0:03:01]} 5. Nc3 {[%clk 0:03:02]}  d6 {[%clk 0:03:02]} 6. Bg5 {[%clk 0:03:02]}  e6 {[%clk 0:03:02]} 7. Qd3 {[%clk 0:03:02]}  Nxd4 {[%clk 0:02:58]} 8. Qxd4 {[%clk 0:03:03]}  Be7 {[%clk 0:02:58]} 9. O-O-O {[%clk 0:03:04]}  a6 {[%clk 0:02:55]} 10. h4 {[%clk 0:03:02]}  h6 {[%clk 0:02:55]} 11. Bd2 {[%clk 0:03:01]}  b5 {[%clk 0:02:48]} 12. f3 {[%clk 0:02:59]}  Qc7 {[%clk 0:02:44]} 13. g4 {[%clk 0:02:58]}  Bb7 {[%clk 0:02:41]} 14. Kb1 {[%clk 0:02:48]}  O-O-O {[%clk 0:02:28]} 15. Be3 {[%clk 0:02:42]}  Qc5 {[%clk 0:02:03]} 16. Qd2 {[%clk 0:02:39]}  Qc7 {[%clk 0:01:57]} 17. Be2 {[%clk 0:02:39]}  d5 {[%clk 0:01:57]} 18. e5 {[%clk 0:02:40]}  Nd7 {[%clk 0:01:52]} 19. f4 {[%clk 0:02:39]}  Bc5 {[%clk 0:01:49]} 20. Bf3 {[%clk 0:02:32]}  Bxe3 {[%clk 0:01:48]} 21. Qxe3 {[%clk 0:02:33]}  Qc5 {[%clk 0:01:48]} 22. Qxc5+ {[%clk 0:02:33]}  Nxc5 {[%clk 0:01:49]} 23. Ne2 {[%clk 0:02:34]}  Ne4 {[%clk 0:01:25]} 24. Rh2 {[%clk 0:02:34]}  Rd7 {[%clk 0:01:07]} 25. Nd4 {[%clk 0:02:32]}  g6 {[%clk 0:01:03]} 26. Rg1 {[%clk 0:02:30]}  b4 {[%clk 0:00:53]} 27. f5 {[%clk 0:02:29]}  gxf5 {[%clk 0:00:47]} 28. gxf5 {[%clk 0:02:30]}  Re7 {[%clk 0:00:47]} 29. fxe6 {[%clk 0:02:28]}  fxe6 {[%clk 0:00:48]} 30. b3 {[%clk 0:02:23]}  a5 {[%clk 0:00:47]} 31. Rg6 {[%clk 0:02:21]}  Kd7 {[%clk 0:00:46]} 32. Bg4 {[%clk 0:02:17]}  Nc3+ {[%clk 0:00:22]} 33. Kb2 {[%clk 0:02:16]}  Rf8 {[%clk 0:00:23]} 34. Rh1 {[%clk 0:01:45]}  Rf4 {[%clk 0:00:19]} 35. Nxe6 {[%clk 0:01:45]}  Rxg4 {[%clk 0:00:18]} 36. Nc5+ {[%clk 0:01:46]}  Kc7 {[%clk 0:00:17]} 37. Rxg4 {[%clk 0:01:46]}  Rxe5 {[%clk 0:00:08]} 38. Rg7+ {[%clk 0:01:46]} 1-0


[Site "https://www.chess.com"]

[Event "Titled Tuesday Blitz May 9 Late 2023"]
[White "Ezat, Mohamed"]
[Black "Romero Ruscalleda, Josep"]
[WhiteFideId "10600906"]
[BlackFideId "2231859"]
[WhiteElo "2386"]
[BlackElo "2183"]
[Result "1-0"]
[Round "03"]
[TimeControl "180+2"]
[Date "2023.05.09"]
[WhiteClock "0:00:11"]
[BlackClock "0:00:04"]

1. d4 {[%clk 0:02:50]}  g6 {[%clk 0:02:58]} 2. c4 {[%clk 0:02:50]}  Bg7 {[%clk 0:02:58]} 3. e4 {[%clk 0:02:51]}  d6 {[%clk 0:02:58]} 4. Nc3 {[%clk 0:02:49]}  e5 {[%clk 0:02:58]} 5. dxe5 {[%clk 0:02:50]}  dxe5 {[%clk 0:02:58]} 6. Qxd8+ {[%clk 0:02:50]}  Kxd8 {[%clk 0:02:59]} 7. f4 {[%clk 0:02:50]}  Nc6 {[%clk 0:02:57]} 8. Nf3 {[%clk 0:02:49]}  Bg4 {[%clk 0:02:47]} 9. Be2 {[%clk 0:02:41]}  Bxf3 {[%clk 0:02:47]} 10. gxf3 {[%clk 0:02:38]}  Nd4 {[%clk 0:02:46]} 11. Bd1 {[%clk 0:02:38]}  Ne7 {[%clk 0:02:45]} 12. fxe5 {[%clk 0:02:32]}  Bxe5 {[%clk 0:02:41]} 13. f4 {[%clk 0:02:32]}  Bg7 {[%clk 0:02:39]} 14. O-O {[%clk 0:02:30]}  c6 {[%clk 0:02:32]} 15. e5 {[%clk 0:02:26]}  Kc7 {[%clk 0:02:31]} 16. Ne4 {[%clk 0:02:17]}  Nef5 {[%clk 0:02:27]} 17. Rb1 {[%clk 0:02:06]}  a5 {[%clk 0:02:26]} 18. b3 {[%clk 0:02:06]}  Rad8 {[%clk 0:02:15]} 19. Bd2 {[%clk 0:01:59]}  b6 {[%clk 0:02:04]} 20. c5 {[%clk 0:01:58]}  Rd5 {[%clk 0:01:51]} 21. cxb6+ {[%clk 0:01:58]}  Kxb6 {[%clk 0:01:51]} 22. b4 {[%clk 0:01:40]}  axb4 {[%clk 0:01:48]} 23. Bxb4 {[%clk 0:01:38]}  Kc7 {[%clk 0:01:42]} 24. Bb3 {[%clk 0:01:33]}  Nxb3 {[%clk 0:01:40]} 25. Rxb3 {[%clk 0:01:32]}  Rd4 {[%clk 0:01:30]} 26. Bd6+ {[%clk 0:01:27]}  Nxd6 {[%clk 0:01:27]} 27. exd6+ {[%clk 0:01:27]}  Kc8 {[%clk 0:01:23]} 28. Re1 {[%clk 0:01:14]}  Re8 {[%clk 0:01:22]} 29. d7+ {[%clk 0:01:10]}  Rxd7 {[%clk 0:01:00]} 30. Nd6+ {[%clk 0:01:08]}  Rxd6 {[%clk 0:01:00]} 31. Rxe8+ {[%clk 0:01:08]}  Kd7 {[%clk 0:01:00]} 32. Re2 {[%clk 0:00:50]}  Rd1+ {[%clk 0:00:56]} 33. Kg2 {[%clk 0:00:50]}  Bd4 {[%clk 0:00:45]} 34. Rb7+ {[%clk 0:00:43]}  Kd6 {[%clk 0:00:45]} 35. Rxf7 {[%clk 0:00:34]}  h5 {[%clk 0:00:45]} 36. a4 {[%clk 0:00:31]}  Ra1 {[%clk 0:00:42]} 37. Rd2 {[%clk 0:00:29]}  c5 {[%clk 0:00:29]} 38. Rf6+ {[%clk 0:00:29]}  Kd5 {[%clk 0:00:30]} 39. Rxg6 {[%clk 0:00:29]}  Rxa4 {[%clk 0:00:30]} 40. f5 {[%clk 0:00:29]}  Ra1 {[%clk 0:00:21]} 41. Rg3 {[%clk 0:00:21]}  c4 {[%clk 0:00:20]} 42. f6 {[%clk 0:00:20]}  Ke6 {[%clk 0:00:17]} 43. Rxd4 {[%clk 0:00:19]}  Kxf6 {[%clk 0:00:17]} 44. Rxc4 {[%clk 0:00:17]}  h4 {[%clk 0:00:16]} 45. Rxh4 {[%clk 0:00:15]}  Ra2+ {[%clk 0:00:16]} 46. Kh3 {[%clk 0:00:15]}  Rb2 {[%clk 0:00:16]} 47. Rf4+ {[%clk 0:00:15]}  Ke5 {[%clk 0:00:16]} 48. Rff3 {[%clk 0:00:13]}  Ke4 {[%clk 0:00:15]} 49. Rg4+ {[%clk 0:00:12]}  Ke5 {[%clk 0:00:14]} 50. Rg2 {[%clk 0:00:13]}  Rb8 {[%clk 0:00:13]} 51. Re2+ {[%clk 0:00:12]}  Kd4 {[%clk 0:00:13]} 52. Rf4+ {[%clk 0:00:12]}  Kd3 {[%clk 0:00:14]} 53. Re7 {[%clk 0:00:12]}  Rh8+ {[%clk 0:00:13]} 54. Rh4 {[%clk 0:00:12]}  Rf8 {[%clk 0:00:13]} 55. Rh6 {[%clk 0:00:12]}  Rf3+ {[%clk 0:00:11]} 56. Kg2 {[%clk 0:00:10]}  Rf5 {[%clk 0:00:11]} 57. Rd6+ {[%clk 0:00:10]}  Kc4 {[%clk 0:00:11]} 58. Rc7+ {[%clk 0:00:11]}  Kb5 {[%clk 0:00:11]} 59. Rc1 {[%clk 0:00:11]}  Rg5+ {[%clk 0:00:11]} 60. Kf3 {[%clk 0:00:11]}  Rh5 {[%clk 0:00:11]} 61. Kg3 {[%clk 0:00:11]}  Rg5+ {[%clk 0:00:10]} 62. Kh4 {[%clk 0:00:11]}  Re5 {[%clk 0:00:10]} 63. Rd2 {[%clk 0:00:10]}  Re4+ {[%clk 0:00:09]} 64. Kg5 {[%clk 0:00:11]}  Rb4 {[%clk 0:00:09]} 65. h4 {[%clk 0:00:10]}  Kb6 {[%clk 0:00:09]} 66. h5 {[%clk 0:00:10]}  Rb5+ {[%clk 0:00:09]} 67. Kg6 {[%clk 0:00:11]}  Rb3 {[%clk 0:00:09]} 68. h6 {[%clk 0:00:11]}  Rg3+ {[%clk 0:00:04]} 69. Kh7 {[%clk 0:00:11]} 1-0


[Site "https://www.chess.com"]

[Event "Titled Tuesday Blitz May 9 Late 2023"]
[White "Rodriguez Santiago, Jaime"]
[Black "WindWhistler11"]
[WhiteFideId "3100898"]
[WhiteElo "2025"]
[BlackElo "2510"]
[Result "0-1"]
[Round "03"]
[TimeControl "180+2"]
[Date "2023.05.09"]
[WhiteClock "0:00:13"]
[BlackClock "0:00:22"]

1. c4 {[%clk 0:03:00]}  Nf6 {[%clk 0:02:58]} 2. Nc3 {[%clk 0:03:00]}  g6 {[%clk 0:02:57]} 3. g3 {[%clk 0:03:00]}  d6 {[%clk 0:02:54]} 4. Bg2 {[%clk 0:03:00]}  Bg7 {[%clk 0:02:55]} 5. e4 {[%clk 0:03:00]}  O-O {[%clk 0:02:54]} 6. Nge2 {[%clk 0:03:01]}  Nbd7 {[%clk 0:02:54]} 7. O-O {[%clk 0:03:01]}  c6 {[%clk 0:02:51]} 8. d3 {[%clk 0:03:01]}  a6 {[%clk 0:02:52]} 9. a4 {[%clk 0:02:57]}  a5 {[%clk 0:02:50]} 10. h3 {[%clk 0:02:57]}  e5 {[%clk 0:02:46]} 11. Be3 {[%clk 0:02:56]}  Nc5 {[%clk 0:02:45]} 12. Rb1 {[%clk 0:02:52]}  Nfd7 {[%clk 0:02:42]} 13. d4 {[%clk 0:02:43]}  exd4 {[%clk 0:02:41]} 14. Bxd4 {[%clk 0:02:44]}  Ne5 {[%clk 0:02:39]} 15. b3 {[%clk 0:02:39]}  Ne6 {[%clk 0:02:39]} 16. Be3 {[%clk 0:02:36]}  Qc7 {[%clk 0:02:24]} 17. f4 {[%clk 0:02:34]}  Nd7 {[%clk 0:02:24]} 18. f5 {[%clk 0:02:31]}  Nec5 {[%clk 0:02:24]} 19. Qd2 {[%clk 0:02:27]}  Re8 {[%clk 0:02:22]} 20. Bh6 {[%clk 0:02:24]}  Bh8 {[%clk 0:02:19]} 21. g4 {[%clk 0:02:19]}  Ne5 {[%clk 0:02:15]} 22. Bf4 {[%clk 0:02:07]}  Qb6 {[%clk 0:02:12]} 23. Kh1 {[%clk 0:01:59]}  Ncd3 {[%clk 0:02:08]} 24. Bg3 {[%clk 0:01:53]}  Qb4 {[%clk 0:02:04]} 25. f6 {[%clk 0:01:51]}  Be6 {[%clk 0:01:55]} 26. g5 {[%clk 0:01:35]}  Rad8 {[%clk 0:01:54]} 27. Nf4 {[%clk 0:01:21]}  Nc5 {[%clk 0:01:34]} 28. Qc2 {[%clk 0:00:59]}  Na6 {[%clk 0:01:16]} 29. Nd3 {[%clk 0:00:54]}  Nxd3 {[%clk 0:01:11]} 30. Qxd3 {[%clk 0:00:55]}  Nc5 {[%clk 0:01:03]} 31. Qf3 {[%clk 0:00:54]}  Nxb3 {[%clk 0:00:58]} 32. Nd5 {[%clk 0:00:43]}  cxd5 {[%clk 0:00:46]} 33. Rxb3 {[%clk 0:00:40]}  dxe4 {[%clk 0:00:46]} 34. Qd1 {[%clk 0:00:23]}  Qxc4 {[%clk 0:00:43]} 35. Rxb7 {[%clk 0:00:23]}  d5 {[%clk 0:00:34]} 36. Bc7 {[%clk 0:00:20]}  Rc8 {[%clk 0:00:32]} 37. Bxa5 {[%clk 0:00:20]}  Ra8 {[%clk 0:00:23]} 38. Be1 {[%clk 0:00:17]}  Qxa4 {[%clk 0:00:23]} 39. h4 {[%clk 0:00:15]}  Qxd1 {[%clk 0:00:23]} 40. h5 {[%clk 0:00:14]}  Qxh5+ {[%clk 0:00:23]} 41. Kg1 {[%clk 0:00:14]}  Qxg5 {[%clk 0:00:23]} 42. Bf2 {[%clk 0:00:13]}  Bxf6 {[%clk 0:00:22]} 0-1


[Site "https://www.chess.com"]

[Event "Titled Tuesday Blitz May 9 Late 2023"]
[White "Leschinsky, Gary"]
[Black "Bambino Filho, Antonio Carlos"]
[WhiteFideId "30951321"]
[BlackFideId "2113163"]
[WhiteElo "1855"]
[BlackElo "2509"]
[Result "0-1"]
[Round "03"]
[TimeControl "180+2"]
[Date "2023.05.09"]
[WhiteClock "0:00:03"]
[BlackClock "0:00:16"]

1. c4 {[%clk 0:03:00]}  c5 {[%clk 0:02:59]} 2. Nf3 {[%clk 0:03:00]}  Nc6 {[%clk 0:02:56]} 3. d4 {[%clk 0:03:01]}  cxd4 {[%clk 0:02:56]} 4. Nxd4 {[%clk 0:03:01]}  Nf6 {[%clk 0:02:55]} 5. Nc3 {[%clk 0:03:02]}  e6 {[%clk 0:02:55]} 6. g3 {[%clk 0:03:02]}  Bb4 {[%clk 0:02:54]} 7. Nb5 {[%clk 0:03:00]}  O-O {[%clk 0:02:52]} 8. a3 {[%clk 0:03:01]}  Bxc3+ {[%clk 0:02:49]} 9. Nxc3 {[%clk 0:03:00]}  d5 {[%clk 0:02:50]} 10. cxd5 {[%clk 0:03:00]}  exd5 {[%clk 0:02:51]} 11. Bg2 {[%clk 0:03:01]}  d4 {[%clk 0:02:51]} 12. Ne4 {[%clk 0:02:59]}  Bf5 {[%clk 0:02:52]} 13. Bg5 {[%clk 0:02:39]}  Bxe4 {[%clk 0:02:50]} 14. Bxe4 {[%clk 0:02:39]}  Qa5+ {[%clk 0:02:49]} 15. Bd2 {[%clk 0:02:39]}  Qb6 {[%clk 0:02:49]} 16. Bf3 {[%clk 0:02:34]}  Ne5 {[%clk 0:02:45]} 17. Bg2 {[%clk 0:02:33]}  Rfe8 {[%clk 0:02:34]} 18. O-O {[%clk 0:02:33]}  Nc4 {[%clk 0:02:33]} 19. b3 {[%clk 0:02:26]}  Nxd2 {[%clk 0:02:32]} 20. Qxd2 {[%clk 0:02:27]}  Ne4 {[%clk 0:02:26]} 21. Qb4 {[%clk 0:02:25]}  Nc3 {[%clk 0:02:21]} 22. Bxb7 {[%clk 0:02:22]}  Nxe2+ {[%clk 0:02:16]} 23. Kg2 {[%clk 0:02:22]}  Rab8 {[%clk 0:02:13]} 24. Qxb6 {[%clk 0:02:22]}  axb6 {[%clk 0:02:13]} 25. Bd5 {[%clk 0:02:19]}  Red8 {[%clk 0:02:10]} 26. Bc4 {[%clk 0:02:18]}  Nc3 {[%clk 0:02:10]} 27. Bd3 {[%clk 0:02:15]}  Kf8 {[%clk 0:02:04]} 28. Rac1 {[%clk 0:02:14]}  b5 {[%clk 0:02:01]} 29. Rc2 {[%clk 0:02:13]}  Ra8 {[%clk 0:02:01]} 30. Ra1 {[%clk 0:02:13]}  Ra5 {[%clk 0:01:58]} 31. Rd2 {[%clk 0:02:10]}  g6 {[%clk 0:01:45]} 32. Bc2 {[%clk 0:02:04]}  Kg7 {[%clk 0:01:37]} 33. h4 {[%clk 0:02:04]}  f5 {[%clk 0:01:35]} 34. Kf3 {[%clk 0:01:47]}  Kf6 {[%clk 0:01:32]} 35. Bd3 {[%clk 0:01:40]}  Rda8 {[%clk 0:01:25]} 36. Bc2 {[%clk 0:01:39]}  Rd8 {[%clk 0:01:17]} 37. Rd3 {[%clk 0:01:28]}  Ne4 {[%clk 0:01:10]} 38. Rdd1 {[%clk 0:01:28]}  Ke5 {[%clk 0:01:02]} 39. Bd3 {[%clk 0:01:25]}  Rc8 {[%clk 0:00:57]} 40. b4 {[%clk 0:01:14]}  Ra7 {[%clk 0:00:47]} 41. Bxb5 {[%clk 0:01:13]}  Rc3+ {[%clk 0:00:47]} 42. Bd3 {[%clk 0:00:35]}  Raxa3 {[%clk 0:00:45]} 43. Rxa3 {[%clk 0:00:35]}  Rxa3 {[%clk 0:00:46]} 44. Kg2 {[%clk 0:00:36]}  Nc3 {[%clk 0:00:45]} 45. Re1+ {[%clk 0:00:35]}  Kd6 {[%clk 0:00:45]} 46. Bc4 {[%clk 0:00:32]}  Ra4 {[%clk 0:00:42]} 47. Re6+ {[%clk 0:00:32]}  Kd7 {[%clk 0:00:42]} 48. Rb6 {[%clk 0:00:32]}  Kc7 {[%clk 0:00:35]} 49. Rf6 {[%clk 0:00:30]}  Rxb4 {[%clk 0:00:33]} 50. Bd3 {[%clk 0:00:31]}  Rb7 {[%clk 0:00:28]} 51. h5 {[%clk 0:00:23]}  Nd5 {[%clk 0:00:22]} 52. Re6 {[%clk 0:00:23]}  Nb4 {[%clk 0:00:18]} 53. Be2 {[%clk 0:00:16]}  Kd7 {[%clk 0:00:18]} 54. Rf6 {[%clk 0:00:14]}  d3 {[%clk 0:00:18]} 55. Bxd3 {[%clk 0:00:10]}  Nxd3 {[%clk 0:00:19]} 56. hxg6 {[%clk 0:00:10]}  hxg6 {[%clk 0:00:19]} 57. Rxg6 {[%clk 0:00:11]}  Rb5 {[%clk 0:00:19]} 58. Rf6 {[%clk 0:00:11]}  Ke7 {[%clk 0:00:18]} 59. Ra6 {[%clk 0:00:12]}  Ne5 {[%clk 0:00:19]} 60. Ra3 {[%clk 0:00:12]}  Ng4 {[%clk 0:00:18]} 61. Rf3 {[%clk 0:00:12]}  Ke6 {[%clk 0:00:17]} 62. Rc3 {[%clk 0:00:12]}  Rb2 {[%clk 0:00:17]} 63. Rf3 {[%clk 0:00:12]}  Ke5 {[%clk 0:00:17]} 64. Kg1 {[%clk 0:00:12]}  Nf6 {[%clk 0:00:17]} 65. Rf4 {[%clk 0:00:12]}  Ne4 {[%clk 0:00:18]} 66. Rf3 {[%clk 0:00:13]}  Rb1+ {[%clk 0:00:18]} 67. Kg2 {[%clk 0:00:13]}  Nd2 {[%clk 0:00:18]} 68. Rf4 {[%clk 0:00:13]}  Ne4 {[%clk 0:00:19]} 69. Rf3 {[%clk 0:00:13]}  Rb2 {[%clk 0:00:19]} 70. Rf4 {[%clk 0:00:13]}  Kf6 {[%clk 0:00:19]} 71. Rf3 {[%clk 0:00:13]}  Kg5 {[%clk 0:00:20]} 72. Rf4 {[%clk 0:00:14]}  Nf6 {[%clk 0:00:20]} 73. Rf3 {[%clk 0:00:14]}  Nh5 {[%clk 0:00:20]} 74. Ra3 {[%clk 0:00:13]}  Nf6 {[%clk 0:00:20]} 75. Rf3 {[%clk 0:00:13]}  Ra2 {[%clk 0:00:20]} 76. Rf4 {[%clk 0:00:13]}  Ng4 {[%clk 0:00:19]} 77. Rf3 {[%clk 0:00:13]}  Ne5 {[%clk 0:00:18]} 78. Rf4 {[%clk 0:00:14]}  Nd3 {[%clk 0:00:17]} 79. Rf3 {[%clk 0:00:03]}  Ne1+ {[%clk 0:00:16]} 0-1


[Site "https://www.chess.com"]